[Event "Titled Tuesday Blitz November 30 2021"]
[White "Rasulov, Vugar"]
[Black "Madaminov, Mukhiddin"]
[WhiteFideId "13402390"]
[BlackFideId "14210703"]
[WhiteElo "2560"]
[BlackElo "1855"]
[Result "1-0"]
[Round "06"]
[TimeControl "180+1"]
[Date "2021.11.30"]
[WhiteClock "0:00:55"]
[BlackClock "0:00:01"]

1. d4 {[%clk 0:03:00]}  Nf6 {[%clk 0:03:00]} 2. c4 {[%clk 0:03:01]}  e6 {[%clk 0:03:01]} 3. Nc3 {[%clk 0:03:01]}  Bb4 {[%clk 0:03:01]} 4. Bd2 {[%clk 0:03:02]}  d5 {[%clk 0:02:59]} 5. e3 {[%clk 0:03:01]}  O-O {[%clk 0:02:57]} 6. Nf3 {[%clk 0:03:02]}  c5 {[%clk 0:02:57]} 7. a3 {[%clk 0:03:02]}  Bxc3 {[%clk 0:02:56]} 8. Bxc3 {[%clk 0:03:02]}  Ne4 {[%clk 0:02:55]} 9. Rc1 {[%clk 0:03:02]}  Nxc3 {[%clk 0:02:47]} 10. Rxc3 {[%clk 0:03:03]}  cxd4 {[%clk 0:02:46]} 11. Qxd4 {[%clk 0:02:59]}  Nc6 {[%clk 0:02:46]} 12. Qd2 {[%clk 0:02:59]}  dxc4 {[%clk 0:02:43]} 13. Qxd8 {[%clk 0:02:55]}  Rxd8 {[%clk 0:02:44]} 14. Bxc4 {[%clk 0:02:56]}  Bd7 {[%clk 0:02:44]} 15. Ke2 {[%clk 0:02:52]}  Be8 {[%clk 0:02:44]} 16. Rhc1 {[%clk 0:02:48]}  Kf8 {[%clk 0:02:43]} 17. b4 {[%clk 0:02:48]}  Rac8 {[%clk 0:02:42]} 18. Bd3 {[%clk 0:02:45]}  Ne7 {[%clk 0:02:29]} 19. Be4 {[%clk 0:02:32]}  b6 {[%clk 0:02:03]} 20. Rc7 {[%clk 0:02:21]}  Bb5+ {[%clk 0:02:00]} 21. Ke1 {[%clk 0:02:21]}  Rxc7 {[%clk 0:02:00]} 22. Rxc7 {[%clk 0:02:20]}  Rd7 {[%clk 0:02:01]} 23. Rc3 {[%clk 0:02:16]}  Ba4 {[%clk 0:01:41]} 24. Nd4 {[%clk 0:02:05]}  h6 {[%clk 0:01:37]} 25. f4 {[%clk 0:02:01]}  Nd5 {[%clk 0:01:23]} 26. Rc8+ {[%clk 0:01:51]}  Ke7 {[%clk 0:01:20]} 27. Bxd5 {[%clk 0:01:51]}  Rxd5 {[%clk 0:01:20]} 28. Kd2 {[%clk 0:01:48]}  Rd8 {[%clk 0:01:14]} 29. Rxd8 {[%clk 0:01:41]}  Kxd8 {[%clk 0:01:14]} 30. e4 {[%clk 0:01:41]}  Bd7 {[%clk 0:01:04]} 31. e5 {[%clk 0:01:42]}  Ke7 {[%clk 0:01:03]} 32. Kd3 {[%clk 0:01:42]}  a6 {[%clk 0:00:58]} 33. g3 {[%clk 0:01:36]}  Ba4 {[%clk 0:00:59]} 34. h4 {[%clk 0:01:31]}  h5 {[%clk 0:00:57]} 35. Nf3 {[%clk 0:01:29]}  Bd1 {[%clk 0:00:54]} 36. Nd2 {[%clk 0:01:28]}  Ba4 {[%clk 0:00:41]} 37. Kc3 {[%clk 0:01:28]}  Bb5 {[%clk 0:00:40]} 38. Kb3 {[%clk 0:01:29]}  f6 {[%clk 0:00:37]} 39. a4 {[%clk 0:01:28]}  Bd3 {[%clk 0:00:35]} 40. Kc3 {[%clk 0:01:27]}  Be2 {[%clk 0:00:35]} 41. Kd4 {[%clk 0:01:25]}  Kf7 {[%clk 0:00:30]} 42. a5 {[%clk 0:01:24]}  bxa5 {[%clk 0:00:30]} 43. bxa5 {[%clk 0:01:25]}  Kg6 {[%clk 0:00:31]} 44. Ke4 {[%clk 0:01:14]}  Bb5 {[%clk 0:00:29]} 45. Nb3 {[%clk 0:01:09]}  Bc6+ {[%clk 0:00:28]} 46. Ke3 {[%clk 0:01:10]}  Bb5 {[%clk 0:00:19]} 47. Nd4 {[%clk 0:01:09]}  Bc4 {[%clk 0:00:19]} 48. Kd2 {[%clk 0:01:09]}  Bd5 {[%clk 0:00:14]} 49. Kc3 {[%clk 0:01:08]}  Kf7 {[%clk 0:00:07]} 50. Kb4 {[%clk 0:01:08]}  Ke7 {[%clk 0:00:07]} 51. Kc5 {[%clk 0:01:09]}  fxe5 {[%clk 0:00:03]} 52. fxe5 {[%clk 0:01:08]}  Kd7 {[%clk 0:00:04]} 53. Kb6 {[%clk 0:01:04]}  Bc4 {[%clk 0:00:04]} 54. Nf3 {[%clk 0:01:03]}  Be2 {[%clk 0:00:04]} 55. Ne1 {[%clk 0:00:59]}  Bc4 {[%clk 0:00:01]} 56. Nc2 {[%clk 0:01:00]}  Bf1 {[%clk 0:00:01]} 57. Nb4 {[%clk 0:01:00]}  Be2 {[%clk 0:00:01]} 58. Nc6 {[%clk 0:00:55]} 1-0


[Site "https://www.chess.com"]

[Event "Titled Tuesday Blitz November 30 2021"]
[White "Siva Mahadevan"]
[Black "Atakishiyev, Elmar"]
[WhiteFideId "25043153"]
[BlackFideId "13410547"]
[WhiteElo "2203"]
[BlackElo "2088"]
[Result "0-1"]
[Round "06"]
[TimeControl "180+1"]
[Date "2021.11.30"]
[WhiteClock "0:00:16"]
[BlackClock "0:00:13"]

1. e4 {[%clk 0:02:52]}  e6 {[%clk 0:02:55]} 2. d4 {[%clk 0:02:52]}  d5 {[%clk 0:02:55]} 3. Nd2 {[%clk 0:02:53]}  dxe4 {[%clk 0:02:56]} 4. Nxe4 {[%clk 0:02:54]}  Nd7 {[%clk 0:02:56]} 5. Nf3 {[%clk 0:02:54]}  Ngf6 {[%clk 0:02:57]} 6. Bd3 {[%clk 0:02:54]}  c5 {[%clk 0:02:56]} 7. O-O {[%clk 0:02:54]}  Nxe4 {[%clk 0:02:54]} 8. Bxe4 {[%clk 0:02:54]}  Nf6 {[%clk 0:02:55]} 9. Bd3 {[%clk 0:02:54]}  cxd4 {[%clk 0:02:54]} 10. Nxd4 {[%clk 0:02:55]}  Bc5 {[%clk 0:02:54]} 11. Nf3 {[%clk 0:02:54]}  O-O {[%clk 0:02:52]} 12. Qe2 {[%clk 0:02:55]}  b6 {[%clk 0:02:48]} 13. Bg5 {[%clk 0:02:55]}  Bb7 {[%clk 0:02:46]} 14. Rad1 {[%clk 0:02:56]}  Qc7 {[%clk 0:02:46]} 15. Rfe1 {[%clk 0:02:56]}  h6 {[%clk 0:02:40]} 16. Bh4 {[%clk 0:02:47]}  Bd6 {[%clk 0:02:29]} 17. Bxf6 {[%clk 0:02:41]}  gxf6 {[%clk 0:02:30]} 18. Be4 {[%clk 0:02:39]}  Rad8 {[%clk 0:02:08]} 19. Bxb7 {[%clk 0:02:38]}  Qxb7 {[%clk 0:02:09]} 20. Nd4 {[%clk 0:02:39]}  Be5 {[%clk 0:02:00]} 21. Qg4+ {[%clk 0:02:31]}  Kh7 {[%clk 0:01:58]} 22. c3 {[%clk 0:01:49]}  Rg8 {[%clk 0:01:48]} 23. Qf3 {[%clk 0:01:49]}  Qxf3 {[%clk 0:01:40]} 24. Nxf3 {[%clk 0:01:50]}  Bc7 {[%clk 0:01:38]} 25. Nd4 {[%clk 0:01:50]}  Rd5 {[%clk 0:01:23]} 26. Nc6 {[%clk 0:01:47]}  Rc5 {[%clk 0:01:14]} 27. Nb4 {[%clk 0:01:21]}  a5 {[%clk 0:01:11]} 28. Na6 {[%clk 0:01:16]}  Rc6 {[%clk 0:01:07]} 29. Nxc7 {[%clk 0:01:00]}  Rxc7 {[%clk 0:01:06]} 30. Rd6 {[%clk 0:01:01]}  Rb8 {[%clk 0:01:06]} 31. Red1 {[%clk 0:00:56]}  Rbb7 {[%clk 0:01:05]} 32. Kf1 {[%clk 0:00:45]}  b5 {[%clk 0:01:05]} 33. R1d4 {[%clk 0:00:46]}  b4 {[%clk 0:01:05]} 34. c4 {[%clk 0:00:46]}  a4 {[%clk 0:01:00]} 35. Ke2 {[%clk 0:00:45]}  Rc5 {[%clk 0:00:58]} 36. Kd3 {[%clk 0:00:43]}  Kg6 {[%clk 0:00:56]} 37. Rd7 {[%clk 0:00:39]}  Rb6 {[%clk 0:00:46]} 38. R4d6 {[%clk 0:00:38]}  Rb8 {[%clk 0:00:40]} 39. Rd8 {[%clk 0:00:38]}  Rb7 {[%clk 0:00:41]} 40. R6d7 {[%clk 0:00:38]}  Rb6 {[%clk 0:00:34]} 41. Kd4 {[%clk 0:00:27]}  Rbc6 {[%clk 0:00:25]} 42. b3 {[%clk 0:00:28]}  axb3 {[%clk 0:00:21]} 43. axb3 {[%clk 0:00:28]}  Re5 {[%clk 0:00:21]} 44. f4 {[%clk 0:00:20]}  Re2 {[%clk 0:00:20]} 45. g4 {[%clk 0:00:20]}  Kg7 {[%clk 0:00:13]} 46. Rd6 {[%clk 0:00:16]}  Rd2+ {[%clk 0:00:13]} 0-1


[Site "https://www.chess.com"]

[Event "Titled Tuesday Blitz November 30 2021"]
[White "Sviridov, Valery"]
[Black "Durarbayli, Vasif"]
[WhiteFideId "4120680"]
[BlackFideId "13402935"]
[WhiteElo "2454"]
[BlackElo "2522"]
[Result "1-0"]
[Round "06"]
[TimeControl "180+1"]
[Date "2021.11.30"]
[WhiteClock "0:00:44"]
[BlackClock "0:00:14"]

1. Nf3 {[%clk 0:03:00]}  Nf6 {[%clk 0:02:58]} 2. g3 {[%clk 0:03:01]}  b6 {[%clk 0:02:58]} 3. Bg2 {[%clk 0:03:01]}  Bb7 {[%clk 0:02:59]} 4. O-O {[%clk 0:03:02]}  c5 {[%clk 0:02:59]} 5. c4 {[%clk 0:03:01]}  e6 {[%clk 0:02:59]} 6. Nc3 {[%clk 0:03:01]}  Be7 {[%clk 0:02:59]} 7. d4 {[%clk 0:03:01]}  cxd4 {[%clk 0:03:00]} 8. Qxd4 {[%clk 0:03:01]}  d6 {[%clk 0:03:00]} 9. Rd1 {[%clk 0:03:00]}  a6 {[%clk 0:02:59]} 10. Bg5 {[%clk 0:02:57]}  Nbd7 {[%clk 0:02:58]} 11. e4 {[%clk 0:02:57]}  Qc7 {[%clk 0:02:56]} 12. Rac1 {[%clk 0:02:51]}  Rc8 {[%clk 0:02:55]} 13. b3 {[%clk 0:02:30]}  O-O {[%clk 0:02:55]} 14. Bxf6 {[%clk 0:02:31]}  Nxf6 {[%clk 0:02:47]} 15. Qe3 {[%clk 0:02:24]}  Rfe8 {[%clk 0:02:30]} 16. h3 {[%clk 0:02:23]}  Bf8 {[%clk 0:02:27]} 17. Re1 {[%clk 0:02:00]}  Nd7 {[%clk 0:02:23]} 18. Nd4 {[%clk 0:02:00]}  Qb8 {[%clk 0:02:17]} 19. Red1 {[%clk 0:01:55]}  Qa8 {[%clk 0:02:15]} 20. Nde2 {[%clk 0:01:52]}  Nf6 {[%clk 0:01:58]} 21. Qxb6 {[%clk 0:01:46]}  Nxe4 {[%clk 0:01:49]} 22. Nxe4 {[%clk 0:01:25]}  Bxe4 {[%clk 0:01:46]} 23. Bxe4 {[%clk 0:01:26]}  Qxe4 {[%clk 0:01:46]} 24. Nf4 {[%clk 0:01:26]}  Rc5 {[%clk 0:01:29]} 25. h4 {[%clk 0:01:23]}  a5 {[%clk 0:01:26]} 26. Nd3 {[%clk 0:01:21]}  Rf5 {[%clk 0:01:22]} 27. Nf4 {[%clk 0:01:08]}  Rc5 {[%clk 0:00:59]} 28. Nd3 {[%clk 0:00:58]}  Rf5 {[%clk 0:00:59]} 29. c5 {[%clk 0:00:54]}  dxc5 {[%clk 0:00:39]} 30. Nxc5 {[%clk 0:00:48]}  Qe2 {[%clk 0:00:33]} 31. Rf1 {[%clk 0:00:47]}  Qxa2 {[%clk 0:00:27]} 32. Qc6 {[%clk 0:00:43]}  Rd8 {[%clk 0:00:21]} 33. Nxe6 {[%clk 0:00:44]}  Rd6 {[%clk 0:00:14]} 34. Qxd6 {[%clk 0:00:44]} 1-0


[Site "https://www.chess.com"]

[Event "Titled Tuesday Blitz November 30 2021"]
[White "Willow, Jonah B"]
[Black "Stribuk, Artiom"]
[WhiteFideId "438804"]
[BlackFideId "13515659"]
[WhiteElo "2261"]
[BlackElo "2224"]
[Result "0-1"]
[Round "06"]
[TimeControl "180+1"]
[Date "2021.11.30"]
[WhiteClock "0:00:16"]
[BlackClock "0:00:17"]

1. e4 {[%clk 0:03:00]}  c5 {[%clk 0:02:59]} 2. Nf3 {[%clk 0:03:01]}  Nc6 {[%clk 0:02:59]} 3. d4 {[%clk 0:03:01]}  cxd4 {[%clk 0:02:59]} 4. Nxd4 {[%clk 0:03:02]}  Nf6 {[%clk 0:03:00]} 5. Nc3 {[%clk 0:03:03]}  e5 {[%clk 0:03:00]} 6. Ndb5 {[%clk 0:03:03]}  d6 {[%clk 0:03:01]} 7. Bg5 {[%clk 0:03:03]}  a6 {[%clk 0:03:01]} 8. Na3 {[%clk 0:03:03]}  b5 {[%clk 0:03:01]} 9. Nd5 {[%clk 0:03:03]}  Be7 {[%clk 0:03:02]} 10. Bxf6 {[%clk 0:03:04]}  Bxf6 {[%clk 0:03:03]} 11. c3 {[%clk 0:03:04]}  O-O {[%clk 0:03:02]} 12. Nc2 {[%clk 0:03:03]}  Bg5 {[%clk 0:03:03]} 13. h4 {[%clk 0:03:02]}  Bh6 {[%clk 0:03:02]} 14. g4 {[%clk 0:03:02]}  Bf4 {[%clk 0:03:02]} 15. Nxf4 {[%clk 0:03:03]}  exf4 {[%clk 0:03:02]} 16. Qf3 {[%clk 0:02:54]}  Re8 {[%clk 0:02:32]} 17. Qxf4 {[%clk 0:02:40]}  d5 {[%clk 0:02:30]} 18. O-O-O {[%clk 0:02:30]}  Rxe4 {[%clk 0:02:20]} 19. Qxe4 {[%clk 0:02:28]}  dxe4 {[%clk 0:02:21]} 20. Rxd8+ {[%clk 0:02:29]}  Nxd8 {[%clk 0:02:22]} 21. Bg2 {[%clk 0:02:29]}  Bxg4 {[%clk 0:02:14]} 22. Bxe4 {[%clk 0:02:30]}  Rc8 {[%clk 0:02:02]} 23. Nb4 {[%clk 0:02:30]}  a5 {[%clk 0:01:55]} 24. Nd5 {[%clk 0:02:30]}  Kf8 {[%clk 0:01:54]} 25. f3 {[%clk 0:02:04]}  Be6 {[%clk 0:01:46]} 26. Rd1 {[%clk 0:02:04]}  f5 {[%clk 0:01:37]} 27. Bc2 {[%clk 0:02:03]}  Nf7 {[%clk 0:01:34]} 28. Nf4 {[%clk 0:02:01]}  Bxa2 {[%clk 0:01:20]} 29. Bxf5 {[%clk 0:01:58]}  Rc5 {[%clk 0:01:01]} 30. Bxh7 {[%clk 0:01:58]}  Ne5 {[%clk 0:01:00]} 31. Be4 {[%clk 0:01:38]}  b4 {[%clk 0:00:54]} 32. Kd2 {[%clk 0:01:38]}  Nc4+ {[%clk 0:00:48]} 33. Kc1 {[%clk 0:01:25]}  Ne3 {[%clk 0:00:47]} 34. Rd7 {[%clk 0:01:15]}  bxc3 {[%clk 0:00:41]} 35. bxc3 {[%clk 0:01:15]}  Bf7 {[%clk 0:00:35]} 36. Rd8+ {[%clk 0:01:06]}  Ke7 {[%clk 0:00:35]} 37. Ra8 {[%clk 0:01:06]}  Rxc3+ {[%clk 0:00:33]} 38. Kd2 {[%clk 0:01:07]}  Ra3 {[%clk 0:00:30]} 39. Ra7+ {[%clk 0:01:04]}  Kf6 {[%clk 0:00:29]} 40. Ra6+ {[%clk 0:01:00]}  Ke7 {[%clk 0:00:29]} 41. Ra7+ {[%clk 0:00:48]}  Kf6 {[%clk 0:00:28]} 42. Rc7 {[%clk 0:00:36]}  Nc4+ {[%clk 0:00:28]} 43. Ke1 {[%clk 0:00:33]}  Nd6 {[%clk 0:00:23]} 44. Nd5+ {[%clk 0:00:18]}  Bxd5 {[%clk 0:00:22]} 45. Bxd5 {[%clk 0:00:19]}  Ke5 {[%clk 0:00:23]} 46. Ba8 {[%clk 0:00:16]}  Nf5 {[%clk 0:00:19]} 47. h5 {[%clk 0:00:14]}  a4 {[%clk 0:00:18]} 48. Ra7 {[%clk 0:00:14]}  Ra1+ {[%clk 0:00:17]} 49. Kd2 {[%clk 0:00:14]}  a3 {[%clk 0:00:18]} 50. Be4 {[%clk 0:00:13]}  Nd6 {[%clk 0:00:15]} 51. Bc2 {[%clk 0:00:11]}  Rg1 {[%clk 0:00:09]} 52. Rxa3 {[%clk 0:00:09]}  Nc4+ {[%clk 0:00:09]} 53. Ke2 {[%clk 0:00:06]}  Nxa3 {[%clk 0:00:10]} 54. Bg6 {[%clk 0:00:06]}  Kf6 {[%clk 0:00:10]} 55. Kf2 {[%clk 0:00:06]}  Rxg6 {[%clk 0:00:10]} 56. hxg6 {[%clk 0:00:07]}  Kxg6 {[%clk 0:00:11]} 57. Ke3 {[%clk 0:00:08]}  Kf6 {[%clk 0:00:12]} 58. Ke4 {[%clk 0:00:08]}  Nb5 {[%clk 0:00:12]} 59. Kf4 {[%clk 0:00:09]}  Nc7 {[%clk 0:00:13]} 60. Kg4 {[%clk 0:00:09]}  Ne6 {[%clk 0:00:14]} 61. Kh5 {[%clk 0:00:10]}  Nd4 {[%clk 0:00:14]} 62. f4 {[%clk 0:00:11]}  Ne6 {[%clk 0:00:14]} 63. Kg4 {[%clk 0:00:11]}  g6 {[%clk 0:00:14]} 64. Kf3 {[%clk 0:00:11]}  Kf5 {[%clk 0:00:15]} 65. Kg3 {[%clk 0:00:11]}  Nxf4 {[%clk 0:00:16]} 66. Kh4 {[%clk 0:00:12]}  g5+ {[%clk 0:00:17]} 67. Kg3 {[%clk 0:00:13]}  g4 {[%clk 0:00:17]} 68. Kh4 {[%clk 0:00:14]}  Ne2 {[%clk 0:00:16]} 69. Kh5 {[%clk 0:00:14]}  g3 {[%clk 0:00:16]} 70. Kh4 {[%clk 0:00:15]}  g2 {[%clk 0:00:16]} 71. Kh3 {[%clk 0:00:15]}  g1=Q {[%clk 0:00:16]} 72. Kh4 {[%clk 0:00:16]}  Qg4# {[%clk 0:00:17]} 0-1


[Site "https://www.chess.com"]

[Event "Titled Tuesday Blitz November 30 2021"]
[White "Azarov, Sergei"]
[Black "Szpar, Milosz"]
[WhiteFideId "13501470"]
[BlackFideId "1184989"]
[WhiteElo "2494"]
[BlackElo "2285"]
[Result "1/2-1/2"]
[Round "07"]
[TimeControl "180+1"]
[Date "2021.11.30"]
[WhiteClock "0:00:06"]
[BlackClock "0:00:04"]

1. e4 {[%clk 0:03:00]}  c5 {[%clk 0:02:57]} 2. Nf3 {[%clk 0:03:00]}  d6 {[%clk 0:02:54]} 3. d4 {[%clk 0:03:00]}  cxd4 {[%clk 0:02:52]} 4. Nxd4 {[%clk 0:03:01]}  Nf6 {[%clk 0:02:52]} 5. Nc3 {[%clk 0:03:02]}  Nc6 {[%clk 0:02:52]} 6. Bg5 {[%clk 0:03:01]}  e6 {[%clk 0:02:51]} 7. Qd2 {[%clk 0:03:01]}  a6 {[%clk 0:02:49]} 8. O-O-O {[%clk 0:03:01]}  h6 {[%clk 0:02:49]} 9. Bxf6 {[%clk 0:02:56]}  Qxf6 {[%clk 0:02:48]} 10. Nxc6 {[%clk 0:02:55]}  bxc6 {[%clk 0:02:48]} 11. f4 {[%clk 0:02:55]}  Qd8 {[%clk 0:02:46]} 12. h4 {[%clk 0:02:54]}  Rb8 {[%clk 0:02:42]} 13. Bc4 {[%clk 0:02:54]}  Qb6 {[%clk 0:02:38]} 14. Bb3 {[%clk 0:02:48]}  Bd7 {[%clk 0:02:19]} 15. f5 {[%clk 0:02:36]}  c5 {[%clk 0:02:17]} 16. fxe6 {[%clk 0:02:28]}  fxe6 {[%clk 0:02:16]} 17. Qe2 {[%clk 0:02:16]}  Be7 {[%clk 0:01:57]} 18. Rhf1 {[%clk 0:02:02]}  h5 {[%clk 0:01:47]} 19. Kb1 {[%clk 0:01:22]}  Bxh4 {[%clk 0:01:32]} 20. e5 {[%clk 0:00:51]}  d5 {[%clk 0:01:27]} 21. Rxd5 {[%clk 0:00:51]}  exd5 {[%clk 0:01:12]} 22. Nxd5 {[%clk 0:00:51]}  Qg6 {[%clk 0:01:01]} 23. e6 {[%clk 0:00:45]}  Bb5 {[%clk 0:00:58]} 24. Qe5 {[%clk 0:00:42]}  Rb7 {[%clk 0:00:32]} 25. Rf7 {[%clk 0:00:33]}  Qxg2 {[%clk 0:00:21]} 26. a4 {[%clk 0:00:28]}  Qg1+ {[%clk 0:00:20]} 27. Ka2 {[%clk 0:00:28]}  Rxf7 {[%clk 0:00:12]} 28. exf7+ {[%clk 0:00:27]}  Kxf7 {[%clk 0:00:13]} 29. Qf5+ {[%clk 0:00:19]}  Bf6 {[%clk 0:00:06]} 30. Nxf6+ {[%clk 0:00:16]}  c4 {[%clk 0:00:07]} 31. Nd5+ {[%clk 0:00:16]}  Ke8 {[%clk 0:00:01]} 32. Qc8+ {[%clk 0:00:11]}  Kf7 {[%clk 0:00:01]} 33. Qf5+ {[%clk 0:00:11]}  Ke8 {[%clk 0:00:02]} 34. Qe6+ {[%clk 0:00:12]}  Kf8 {[%clk 0:00:02]} 35. axb5 {[%clk 0:00:11]}  cxb3+ {[%clk 0:00:01]} 36. cxb3 {[%clk 0:00:11]}  axb5 {[%clk 0:00:02]} 37. Qc8+ {[%clk 0:00:11]}  Kf7 {[%clk 0:00:02]} 38. Qxh8 {[%clk 0:00:10]}  Qa7+ {[%clk 0:00:03]} 39. Kb1 {[%clk 0:00:10]}  Qg1+ {[%clk 0:00:03]} 40. Ka2 {[%clk 0:00:10]}  Qa7+ {[%clk 0:00:04]} 41. Kb1 {[%clk 0:00:06]}  Qg1+ {[%clk 0:00:04]} 42. Ka2 {[%clk 0:00:06]} 1/2-1/2


[Site "https://www.chess.com"]

[Event "Titled Tuesday Blitz November 30 2021"]
[White "Babazada, Khazar"]
[Black "Wagner, Dennis"]
[WhiteFideId "13413554"]
[BlackFideId "24650684"]
[WhiteElo "2302"]
[BlackElo "2355"]
[Result "1-0"]
[Round "07"]
[TimeControl "180+1"]
[Date "2021.11.30"]
[WhiteClock "0:00:31"]
[BlackClock "0:00:02"]

1. e4 {[%clk 0:03:00]}  c5 {[%clk 0:02:59]} 2. Nf3 {[%clk 0:03:00]}  d6 {[%clk 0:03:00]} 3. d4 {[%clk 0:02:59]}  cxd4 {[%clk 0:03:01]} 4. Nxd4 {[%clk 0:02:58]}  Nf6 {[%clk 0:03:01]} 5. Nc3 {[%clk 0:02:57]}  a6 {[%clk 0:03:02]} 6. h3 {[%clk 0:02:56]}  e5 {[%clk 0:03:00]} 7. Nf3 {[%clk 0:02:56]}  Be7 {[%clk 0:02:58]} 8. g3 {[%clk 0:02:56]}  Nbd7 {[%clk 0:02:50]} 9. Bg2 {[%clk 0:02:55]}  b5 {[%clk 0:02:51]} 10. a3 {[%clk 0:02:53]}  Bb7 {[%clk 0:02:49]} 11. Nh4 {[%clk 0:02:52]}  g6 {[%clk 0:02:44]} 12. Bh6 {[%clk 0:02:51]}  Rc8 {[%clk 0:02:44]} 13. Qe2 {[%clk 0:02:47]}  Rxc3 {[%clk 0:02:01]} 14. bxc3 {[%clk 0:02:42]}  Nc5 {[%clk 0:02:01]} 15. Bg7 {[%clk 0:02:40]}  Rg8 {[%clk 0:02:01]} 16. Bxf6 {[%clk 0:02:41]}  Bxf6 {[%clk 0:02:01]} 17. Rd1 {[%clk 0:02:24]}  Bxh4 {[%clk 0:01:59]} 18. gxh4 {[%clk 0:02:25]}  Ne6 {[%clk 0:01:48]} 19. Bf3 {[%clk 0:02:12]}  Nf4 {[%clk 0:01:45]} 20. Qe3 {[%clk 0:02:02]}  Qc7 {[%clk 0:01:30]} 21. Rg1 {[%clk 0:01:47]}  h5 {[%clk 0:01:00]} 22. Rg3 {[%clk 0:01:39]}  Ke7 {[%clk 0:01:00]} 23. Be2 {[%clk 0:01:30]}  Rc8 {[%clk 0:01:00]} 24. c4 {[%clk 0:01:23]}  bxc4 {[%clk 0:00:59]} 25. Bf1 {[%clk 0:01:20]}  Ba8 {[%clk 0:00:54]} 26. Rb1 {[%clk 0:01:18]}  Kf8 {[%clk 0:00:49]} 27. Rb4 {[%clk 0:01:13]}  d5 {[%clk 0:00:44]} 28. exd5 {[%clk 0:01:08]}  Nxd5 {[%clk 0:00:34]} 29. Qh6+ {[%clk 0:01:08]}  Ke7 {[%clk 0:00:35]} 30. Rxc4 {[%clk 0:01:05]}  Qa5+ {[%clk 0:00:22]} 31. Qd2 {[%clk 0:01:05]}  Qxd2+ {[%clk 0:00:20]} 32. Kxd2 {[%clk 0:01:06]}  Rb8 {[%clk 0:00:19]} 33. Bd3 {[%clk 0:01:02]}  Rb1 {[%clk 0:00:08]} 34. Be4 {[%clk 0:00:59]}  Nb6 {[%clk 0:00:08]} 35. Rc7+ {[%clk 0:00:54]}  Kd6 {[%clk 0:00:08]} 36. Bxa8 {[%clk 0:00:48]}  Kxc7 {[%clk 0:00:07]} 37. Be4 {[%clk 0:00:49]}  Nc4+ {[%clk 0:00:05]} 38. Ke2 {[%clk 0:00:46]}  Ra1 {[%clk 0:00:05]} 39. Rc3 {[%clk 0:00:44]}  Rxa3 {[%clk 0:00:03]} 40. Rxc4+ {[%clk 0:00:45]}  Kd6 {[%clk 0:00:03]} 41. f3 {[%clk 0:00:43]}  f5 {[%clk 0:00:02]} 42. Ba8 {[%clk 0:00:43]}  Kd7 {[%clk 0:00:01]} 43. Rc6 {[%clk 0:00:43]}  e4 {[%clk 0:00:01]} 44. Rxg6 {[%clk 0:00:41]}  exf3+ {[%clk 0:00:01]} 45. Bxf3 {[%clk 0:00:42]}  Rc3 {[%clk 0:00:01]} 46. Rg5 {[%clk 0:00:33]}  Rxc2+ {[%clk 0:00:02]} 47. Ke3 {[%clk 0:00:33]}  Rh2 {[%clk 0:00:02]} 48. Bg2 {[%clk 0:00:31]}  Ke6 {[%clk 0:00:02]} 49. Kf2 {[%clk 0:00:31]}  Kf6 {[%clk 0:00:02]} 50. Kg1 {[%clk 0:00:31]}  Rxh3 {[%clk 0:00:02]} 51. Bxh3 {[%clk 0:00:31]} 1-0


[Site "https://www.chess.com"]

[Event "Titled Tuesday Blitz November 30 2021"]
[White "Barria Zuniga, Daniel"]
[Black "Svane, Frederik"]
[WhiteFideId "3400816"]
[BlackFideId "12923044"]
[WhiteElo "2414"]
[BlackElo "2459"]
[Result "1-0"]
[Round "07"]
[TimeControl "180+1"]
[Date "2021.11.30"]
[WhiteClock "0:00:18"]
[BlackClock "0:01:00"]

1. d4 {[%clk 0:03:00]}  Nf6 {[%clk 0:03:00]} 2. c4 {[%clk 0:02:57]}  g6 {[%clk 0:03:00]} 3. Nc3 {[%clk 0:02:56]}  Bg7 {[%clk 0:03:01]} 4. e4 {[%clk 0:02:57]}  d6 {[%clk 0:03:01]} 5. Be2 {[%clk 0:02:57]}  O-O {[%clk 0:03:01]} 6. Nf3 {[%clk 0:02:57]}  e5 {[%clk 0:03:01]} 7. d5 {[%clk 0:02:58]}  Na6 {[%clk 0:02:55]} 8. Bg5 {[%clk 0:02:58]}  h6 {[%clk 0:02:54]} 9. Bh4 {[%clk 0:02:57]}  Qe8 {[%clk 0:02:50]} 10. Nd2 {[%clk 0:02:57]}  Bd7 {[%clk 0:02:43]} 11. O-O {[%clk 0:02:57]}  Nc5 {[%clk 0:02:43]} 12. Qc2 {[%clk 0:02:50]}  a5 {[%clk 0:02:42]} 13. b3 {[%clk 0:02:49]}  Nh7 {[%clk 0:02:32]} 14. a3 {[%clk 0:02:48]}  f5 {[%clk 0:02:31]} 15. f3 {[%clk 0:02:48]}  Bf6 {[%clk 0:02:30]} 16. Bf2 {[%clk 0:02:45]}  Qe7 {[%clk 0:02:31]} 17. b4 {[%clk 0:02:43]}  Na6 {[%clk 0:02:31]} 18. c5 {[%clk 0:02:24]}  axb4 {[%clk 0:02:22]} 19. axb4 {[%clk 0:02:24]}  Nxb4 {[%clk 0:02:22]} 20. Qb3 {[%clk 0:02:24]}  dxc5 {[%clk 0:02:23]} 21. d6+ {[%clk 0:02:24]}  Qf7 {[%clk 0:02:06]} 22. Bc4 {[%clk 0:02:23]}  Rxa1 {[%clk 0:02:06]} 23. Rxa1 {[%clk 0:02:20]}  cxd6 {[%clk 0:02:06]} 24. Bxf7+ {[%clk 0:02:18]}  Rxf7 {[%clk 0:02:07]} 25. Ra7 {[%clk 0:02:13]}  Ng5 {[%clk 0:02:04]} 26. Nd5 {[%clk 0:01:59]}  Nxd5 {[%clk 0:02:02]} 27. Qxd5 {[%clk 0:01:56]}  Bc6 {[%clk 0:02:01]} 28. Qxd6 {[%clk 0:01:53]}  fxe4 {[%clk 0:01:58]} 29. Nxe4 {[%clk 0:01:26]}  Nxe4 {[%clk 0:01:54]} 30. fxe4 {[%clk 0:01:25]}  Kg7 {[%clk 0:01:54]} 31. Bxc5 {[%clk 0:01:18]}  Bxe4 {[%clk 0:01:51]} 32. Bb4 {[%clk 0:00:49]}  Bc6 {[%clk 0:01:45]} 33. Ra8 {[%clk 0:00:39]}  g5 {[%clk 0:01:41]} 34. Rf8 {[%clk 0:00:37]}  e4 {[%clk 0:01:31]} 35. Rxf7+ {[%clk 0:00:26]}  Kxf7 {[%clk 0:01:32]} 36. Bc5 {[%clk 0:00:23]}  Kg7 {[%clk 0:01:22]} 37. Bd4 {[%clk 0:00:22]}  Bxd4+ {[%clk 0:01:22]} 38. Qxd4+ {[%clk 0:00:22]}  Kg6 {[%clk 0:01:23]} 39. Qe5 {[%clk 0:00:23]}  Kf7 {[%clk 0:01:16]} 40. Kf2 {[%clk 0:00:22]}  Kg6 {[%clk 0:01:11]} 41. Ke3 {[%clk 0:00:22]}  Kh5 {[%clk 0:01:11]} 42. Qe6 {[%clk 0:00:20]}  g4 {[%clk 0:01:02]} 43. Qf5+ {[%clk 0:00:19]}  Kh4 {[%clk 0:01:03]} 44. Kf4 {[%clk 0:00:19]}  Bd7 {[%clk 0:01:00]} 45. Qxd7 {[%clk 0:00:18]}  h5 {[%clk 0:01:00]} 46. Qe7# {[%clk 0:00:18]} 1-0


[Site "https://www.chess.com"]